[Event "46th GRE-chT Premier 2018"]
[Site "Rio Achaia"]
[Date "2018.07.10"]
[Round "1"]
[White "Goutoufas, Christos"]
[Black "Kazakos, Nikolaos"]
[Result "0-1"]
[ECO "D30"]
[WhiteElo "1434"]
[BlackElo "1375"]
[Annotator "NA"]
[PlyCount "117"]
[EventDate "2018.07.10"]
[EventType "team-tourn"]
[EventCountry "GRE"]
[SourceTitle "playchess.com"]
[Source "ChessBase"]
[SourceQuality "1"]
[TimeControl "40/5400+30:1800+30"]

1. d4 {[%emt 0:00:00]} d5 {[%emt 0:00:00]} 2. c4 {[%emt 0:00:00]} e6 {[%emt 0:00:00]} 3. Nf3 {[%emt 0:00:00]} Nf6 {[%emt 0:00:00]} 4. Bf4 {[%emt 0:00:15]} c6 {[%emt 0:00:25]} 5. e3 {[%emt 0:00:08]} Bd6 {[%emt 0:00:37]} 6. Ne5 {[%emt 0:01:26]} Ne4 {[%emt 0:05:44]} 7. Bd3 {[%emt 0:03:46]} Bb4+ {[%emt 0:01:22]} 8. Kf1 {[%emt 0:01:24]} O-O {[%emt 0:13:37]} 9. Bxe4 {[%emt 0:02:48]} dxe4 {[%emt 0:00:18]} 10. f3 {[%emt 0:13:22]} f6 {[%emt 0:00:44]} 11. Ng4 {[%emt 0:01:20]} h5 {[%emt 0:00:22]} 12. Nf2 {[%emt 0:00:11]} exf3 {[%emt 0:03:31]} 13. gxf3 g5 {[%emt 0:04:08]} 14. Bxb8 {[%emt 0:07:40]} Rxb8 {[%emt 0:00:06]} 15. h4 {[%emt 0:04:13]} Qe8 {[%emt 0:01:31]} 16. Rg1 {[%emt 0:04:09]} Be7 {[%emt 0:05:26]} 17. Ne4 {[%emt 0:02:02]} Qg6 {[%emt 0:01:53]} 18. Nbc3 {[%emt 0:08:29]} Qf5 {[%emt 0:03:42]} 19. Ng3 {[%emt 0:07:41]} Qh3+ {[%emt 0:04:01]} 20. Kf2 {[%emt 0:04:14]} Qh2+ {[%emt 0:03:02]} 21. Rg2 {[%emt 0:00:26]} Qxh4 {[%emt 0:00:00]} 22. Qg1 {[%emt 0:00:43]} g4 {[%emt 0:02:15]} 23. Rh2 {[%emt 0:06:22]} Qg5 {[%emt 0:00:03]} 24. Rxh5 {[%emt 0:00:25]} Qg6 {[%emt 0:01:10]} 25. fxg4 {[%emt 0:01:33]} Qxg4 {[%emt 0:03:22]} 26. Nge4 {[%emt 0:03:38]} f5 {[%emt 0:03:35]} 27. Qxg4+ {[%emt 0:06:56]} fxg4+ {[%emt 0:00:04]} 28. Ke2 {[%emt 0:00:37]} Rf5 {[%emt 0:02:37]} 29. Rah1 {[%emt 0:03:33]} Rxh5 {[%emt 0:00:43]} 30. Rxh5 {[%emt 0:00:09]} Bd7 {[%emt 0:00:49]} 31. Nd1 {[%emt 0:02:51]} e5 {[%emt 0:10:12]} 32. Rxe5 {[%emt 0:02:17]} Kf7 {[%emt 0:00:55]} 33. Kf2 {[%emt 0:02:58]} Rh8 {[%emt 0:02:05]} 34. Kg3 {[%emt 0:05:13]} Rh3+ {[%emt 0:00:26]} 35. Kg2 {[%emt 0:00:31]} Kf8 {[%emt 0:02:33]} 36. c5 {[%emt 0:01:24]} Bd8 {[%emt 0:06:58]} 37. Ng5 {[%emt 0:01:49]} Rh6 {[%emt 0:01:03]} 38. Ne4 {[%emt 0:03:38]} Bc7 {[%emt 0:01:00]} 39. Nd6 {[%emt 0:00:29]} Bxd6 {[%emt 0:00:24]} 40. cxd6 {[%emt 0:00:00]} Rxd6 {[%emt 0:00:00]} 41. Kg3 {[%emt 0:00:44]} Rf6 {[%emt 0:01:29]} 42. Re4 {[%emt 0:01:04]} Rf3+ {[%emt 0:01:11]} 43. Kg2 {[%emt 0:00:17]} Kf7 {[%emt 0:02:22]} 44. Nf2 {[%emt 0:02:18]} Bf5 {[%emt 0:00:26]} 45. Rf4 {[%emt 0:03:38]} Rxf4 {[%emt 0:00:28]} 46. exf4 {[%emt 0:00:08]} Ke6 {[%emt 0:03:25]} 47. Nd1 {[%emt 0:03:27]} Kd5 {[%emt 0:05:42]} 48. Ne3+ {[%emt 0:00:19]} Ke4 {[%emt 0:00:03]} 49. Nxf5 {[%emt 0:00:20]} Kxf5 {[%emt 0:00:00]} 50. Kg3 {[%emt 0:00:16]} b6 {[%emt 0:00:19]} 51. b3 {[%emt 0:03:13]} c5 {[%emt 0:06:48]} 52. d5 {[%emt 0:01:06]} b5 {[%emt 0:00:18]} 53. d6 {[%emt 0:00:18]} Ke6 {[%emt 0:00:09]} 54. Kxg4 {[%emt 0:00:20]} c4 {[%emt 0:01:00]} 55. Kf3 {[%emt 0:01:45]} c3 {[%emt 0:00:11]} 56. Ke2 {[%emt 0:00:07]} b4 {[%emt 0:00:09]} 57. Kd3 {[%emt 0:02:15]} Kxd6 {[%emt 0:00:18]} 58. a3 {[%emt 0:00:11]} a5 {[%emt 0:00:05]} 59. Ke4 {Ke5+} 0-1

[Event "46th GRE-chT Premier 2018"]
[Site "Rio Achaia"]
[Date "2018.07.10"]
[Round "1"]
[White "Papadopoulos, Panteleimon"]
[Black "Grigoriadis, Mihail"]
[Result "0-1"]
[ECO "B32"]
[WhiteElo "1422"]
[BlackElo "2236"]
[Annotator "NA"]
[PlyCount "102"]
[EventDate "2018.07.10"]
[EventType "team-tourn"]
[EventCountry "GRE"]
[SourceTitle "playchess.com"]
[Source "ChessBase"]
[SourceQuality "1"]
[TimeControl "40/5400+30:1800+30"]

1. e4 {[%emt 0:00:06]} c5 {[%emt 0:00:00]} 2. Nf3 {[%emt 0:00:38]} Nc6 {[%emt 0:00:00]} 3. d4 {[%emt 0:00:35]} cxd4 {[%emt 0:00:00]} 4. Nxd4 {[%emt 0:00:52]} d6 {[%emt 0:00:03]} 5. Nc3 {[%emt 0:02:59]} a6 {[%emt 0:01:48]} 6. Be3 {[%emt 0:03:23]} Nf6 {[%emt 0:01:00]} 7. Be2 {[%emt 0:02:55]} g6 {[%emt 0:00:52]} 8. f3 {[%emt 0:06:44]} Bg7 9. Qd2 {[%emt 0:04:13]} O-O {[%emt 0:08:40]} 10. O-O-O {[%emt 0:07:23]} Nxd4 {[%emt 0:07:31]} 11. Bxd4 {[%emt 0:05:15]} b5 {[%emt 0:02:54]} 12. Nd5 {[%emt 0:04:53]} Nxd5 {[%emt 0:01:30]} 13. Bxg7 {[%emt 0:01:59]} Kxg7 {[%emt 0:00:09]} 14. Qxd5 {[%emt 0:11:58]} Be6 {[%emt 0:01:31]} 15. Qd4+ {[%emt 0:02:37]} f6 {[%emt 0:00:34]} 16. Qc3 {[%emt 0:03:59]} Qb6 {[%emt 0:00:35]} 17. a3 {[%emt 0:05:08]} Rfc8 {[%emt 0:01:49]} 18. Qd4 {[%emt 0:02:50]} Qc6 {[%emt 0:00:09]} 19. Bd3 {[%emt 0:02:09]} a5 {[%emt 0:04:19]} 20. g4 {[%emt 0:02:03]} Bb3 {[%emt 0:00:28]} 21. Kd2 {[%emt 0:02:57]} e5 {[%emt 0:03:05]} 22. Qc3 {[%emt 0:01:52]} Qxc3+ {[%emt 0:00:13]} 23. bxc3 {[%emt 0:00:08]} Ba4 {[%emt 0:00:04]} 24. Rb1 {[%emt 0:01:18]} Rc5 {[%emt 0:00:08]} 25. h4 {[%emt 0:00:48]} Rac8 {[%emt 0:00:25]} 26. Rb2 {[%emt 0:05:32]} Rxc3 {[%emt 0:00:17]} 27. Ra2 {[%emt 0:00:32]} R3c5 {[%emt 0:01:26]} 28. Rb2 {[%emt 0:00:55]} Kf7 {[%emt 0:01:45]} 29. Rhb1 {[%emt 0:00:48]} Ke6 {[%emt 0:00:38]} 30. Rh1 {[%emt 0:02:41]} R8c7 {[%emt 0:03:17]} 31. h5 {[%emt 0:01:19]} g5 {[%emt 0:05:07]} 32. Rd1 {[%emt 0:01:32]} d5 {[%emt 0:03:10]} 33. exd5+ {[%emt 0:00:52]} Rxd5 {[%emt 0:00:08]} 34. Ke2 {[%emt 0:00:50]} h6 {[%emt 0:00:56]} 35. Bf5+ {[%emt 0:01:25]} Kd6 {[%emt 0:00:06]} 36. Bd3 {[%emt 0:00:34]} Rd4 {[%emt 0:02:17]} 37. Rd2 {[%emt 0:01:16]} Rc5 {[%emt 0:02:26]} 38. Ke3 {[%emt 0:01:23]} Rc3 {[%emt 0:04:07]} 39. Ra2 {[%emt 0:00:34]} Kc5 {[%emt 0:00:22]} 40. Ke2 {[%emt 0:00:00]} Kb6 {[%emt 0:00:00]} 41. Rd1 {[%emt 0:02:00]} b4 {[%emt 0:06:46]} 42. Rb1 {[%emt 0:01:04]} Bc6 {[%emt 0:00:25]} 43. axb4 {[%emt 0:01:39]} Rxb4 {[%emt 0:00:27]} 44. Rxb4+ {[%emt 0:01:02]} axb4 {[%emt 0:00:02]} 45. Ra6+ {[%emt 0:00:48]} Kb7 {[%emt 0:00:50]} 46. Ra1 {[%emt 0:02:13]} Kb6 {[%emt 0:01:56]} 47. Ra6+ {[%emt 0:00:19]} Kc5 {[%emt 0:00:07]} 48. Ra7 {[%emt 0:01:28]} b3 {[%emt 0:01:13]} 49. Ra3 {[%emt 0:04:41]} Kd4 {[%emt 0:04:43]} 50. Rxb3 {[%emt 0:02:00]} Rxb3 {[%emt 0:00:07]} 51. cxb3 {[%emt 0:00:32]} Bxf3+ {[%emt 0:00:07]} 0-1

[Event "46th GRE-chT Premier 2018"]
[Site "Rio Achaia"]
[Date "2018.07.10"]
[Round "1"]
[White "Basinas, Konstantinos"]
[Black "Karamitanis, Lazaros"]
[Result "1-0"]
[ECO "E70"]
[WhiteElo "1383"]
[BlackElo "1159"]
[Annotator "NA"]
[PlyCount "111"]
[EventDate "2018.07.10"]
[EventType "team-tourn"]
[EventCountry "GRE"]
[SourceTitle "playchess.com"]
[Source "ChessBase"]
[SourceQuality "1"]
[TimeControl "40/5400+30:1800+30"]

1. d4 {[%emt 0:00:00]} Nf6 {[%emt 0:00:00]} 2. c4 {[%emt 0:00:00]} g6 {[%emt 0:00:00]} 3. Nc3 {[%emt 0:00:00]} Bg7 {[%emt 0:00:00]} 4. e4 {[%emt 0:00:00]} d6 {[%emt 0:00:00]} 5. Nge2 {[%emt 0:00:00]} O-O {[%emt 0:00:15]} 6. Ng3 {[%emt 0:00:13]} Nbd7 {[%emt 0:07:20]} 7. Be2 {[%emt 0:00:35]} c5 {[%emt 0:04:06]} 8. d5 {[%emt 0:00:34]} h5 {[%emt 0:11:22]} 9. h4 {[%emt 0:10:07]} Ne5 {[%emt 0:06:11]} 10. f3 {[%emt 0:17:44]} a6 {[%emt 0:09:32]} 11. Be3 {[%emt 0:04:32]} Qb6 {[%emt 0:01:53]} 12. Qd2 {[%emt 0:00:57]} Kh7 {[%emt 0:02:53]} 13. O-O {[%emt 0:10:55]} Qc7 {[%emt 0:06:34]} 14. Rab1 {[%emt 0:04:49]} Bd7 {[%emt 0:03:05]} 15. a3 {[%emt 0:00:45]} Rfc8 {[%emt 0:06:47]} 16. Rfc1 {[%emt 0:00:55]} Qd8 {[%emt 0:01:46]} 17. Qe1 {[%emt 0:03:06]} Bh6 {[%emt 0:03:22]} 18. Nf1 {[%emt 0:04:58]} Qf8 {[%emt 0:03:09]} 19. Bxh6 {[%emt 0:02:18]} Qxh6 {[%emt 0:00:14]} 20. Qd2 {[%emt 0:00:25]} Qxd2 {[%emt 0:01:00]} 21. Nxd2 {[%emt 0:00:08]} Rab8 {[%emt 0:00:31]} 22. b4 {[%emt 0:03:24]} b6 {[%emt 0:01:35]} 23. Rb3 {[%emt 0:08:41]} Be8 {[%emt 0:01:32]} 24. Rcb1 {[%emt 0:01:28]} Ned7 {[%emt 0:01:11]} 25. bxc5 {[%emt 0:11:33]} bxc5 {[%emt 0:00:26]} 26. Rxb8 {[%emt 0:00:49]} Rxb8 {[%emt 0:00:12]} 27. Rxb8 {[%emt 0:00:13]} Nxb8 {[%emt 0:00:06]} 28. Kf2 {[%emt 0:00:43]} e5 {[%emt 0:03:08]} 29. g3 {[%emt 0:01:29]} Bd7 {[%emt 0:02:03]} 30. f4 {[%emt 0:00:24]} exf4 {[%emt 0:01:20]} 31. gxf4 {[%emt 0:00:10]} Ne8 {[%emt 0:07:34]} 32. e5 {[%emt 0:00:27]} Bf5 {[%emt 0:00:53]} 33. Nde4 {[%emt 0:02:37]} Nd7 {[%emt 0:01:32]} 34. Nxd6 {[%emt 0:02:55]} Nxd6 {[%emt 0:00:16]} 35. exd6 {[%emt 0:00:04]} Bg4 {[%emt 0:01:11]} 36. Bd3 {[%emt 0:02:07]} Kg8 {[%emt 0:00:43]} 37. Bc2 {[%emt 0:00:28]} Nf6 {[%emt 0:01:37]} 38. Ke3 {[%emt 0:01:18]} Bd7 {[%emt 0:00:47]} 39. Ba4 {[%emt 0:00:33]} Kf8 {[%emt 0:01:25]} 40. Bc6 {[%emt 0:00:00]} Ng4+ {[%emt 0:00:00]} 41. Ke2 {[%emt 0:03:08]} Nf6 {[%emt 0:03:32]} 42. Na4 {[%emt 0:02:04]} Ke8 {[%emt 0:00:57]} 43. Nxc5 {[%emt 0:01:25]} Kd8 {[%emt 0:02:31]} 44. Bxd7 {[%emt 0:00:06]} Nxd7 {[%emt 0:00:06]} 45. Nxd7 {[%emt 0:00:08]} Kxd7 {[%emt 0:00:08]} 46. c5 {[%emt 0:00:03]} f6 {[%emt 0:01:34]} 47. Ke3 {[%emt 0:00:09]} a5 {[%emt 0:00:18]} 48. a4 {[%emt 0:00:05]} Kd8 {[%emt 0:00:05]} 49. c6 {[%emt 0:00:05]} Kc8 {[%emt 0:00:16]} 50. d7+ {[%emt 0:00:07]} Kd8 {[%emt 0:00:23]} 51. f5 {[%emt 0:00:26]} gxf5 {[%emt 0:00:32]} 52. Kf4 {[%emt 0:00:04]} Kc7 {[%emt 0:00:25]} 53. Kxf5 {[%emt 0:00:05]} Kd8 {[%emt 0:00:25]} 54. Ke6 {[%emt 0:00:32]} f5 {[%emt 0:00:16]} 55. d6 {[%emt 0:00:06]} f4 {[%emt 0:00:23]} 56. c7# {[%emt 0:00:06]} 1-0

[Event "46th GRE-chT Premier 2018"]
[Site "Rio Achaia"]
[Date "2018.07.10"]
[Round "1"]
[White "Apostolakaki, Evangelia"]
[Black "Chatziioannidi, Filippa"]
[Result "1-0"]
[ECO "A46"]
[WhiteElo "1376"]
[BlackElo "1592"]
[Annotator "NA"]
[PlyCount "129"]
[EventDate "2018.07.10"]
[EventType "team-tourn"]
[EventCountry "GRE"]
[SourceTitle "playchess.com"]
[Source "ChessBase"]
[SourceQuality "1"]
[TimeControl "40/5400+30:1800+30"]

1. d4 {[%emt 0:00:00]} Nf6 {[%emt 0:00:00]} 2. Nf3 {[%emt 0:00:00]} e6 {[%emt 0:00:00]} 3. e3 {[%emt 0:00:00]} d5 {[%emt 0:00:00]} 4. c4 {[%emt 0:00:00]} b6 {[%emt 0:00:00]} 5. Nbd2 {[%emt 0:00:33]} Bd6 6. Bd3 O-O {[%emt 0:01:36]} 7. O-O {[%emt 0:01:06]} Bb7 {[%emt 0:00:19]} 8. b3 {[%emt 0:00:59]} Nbd7 {[%emt 0:00:51]} 9. Bb2 {[%emt 0:00:52]} Re8 {[%emt 0:00:21]} 10. cxd5 {[%emt 0:06:23]} Nxd5 {[%emt 0:02:29]} 11. Nc4 {[%emt 0:01:20]} Bf8 {[%emt 0:09:44]} 12. a3 {[%emt 0:07:54]} c5 {[%emt 0:06:26]} 13. Be2 {[%emt 0:12:20]} Qc7 {[%emt 0:03:26]} 14. Rc1 {[%emt 0:01:37]} Rad8 {[%emt 0:04:24]} 15. Qc2 {[%emt 0:03:18]} Qb8 {[%emt 0:02:34]} 16. Bd3 {[%emt 0:07:38]} N5f6 {[%emt 0:03:54]} 17. Nfe5 {[%emt 0:06:03]} g6 {[%emt 0:04:35]} 18. Nxd7 {[%emt 0:06:15]} Nxd7 {[%emt 0:01:30]} 19. Be4 {[%emt 0:18:38]} cxd4 {[%emt 0:07:32]} 20. Bxb7 {[%emt 0:00:58]} Qxb7 {[%emt 0:01:15]} 21. Bxd4 {[%emt 0:00:50]} b5 {[%emt 0:09:15]} 22. Na5 {[%emt 0:00:28]} Qa6 {[%emt 0:03:51]} 23. b4 {[%emt 0:00:34]} e5 {[%emt 0:02:04]} 24. Ba1 {[%emt 0:01:33]} Nb6 {[%emt 0:01:35]} 25. Qb3 {[%emt 0:03:08]} Bg7 {[%emt 0:12:04]} 26. Rc7 {[%emt 0:02:29]} Rf8 {[%emt 0:04:22]} 27. Nb7 {[%emt 0:05:11]} Nd5 {[%emt 0:03:13]} 28. Nxd8 {[%emt 0:03:15]} Nxc7 {[%emt 0:00:10]} 29. Rc1 {[%emt 0:00:28]} Qd6 {[%emt 0:04:49]} 30. Nc6 {[%emt 0:01:16]} a6 {[%emt 0:02:27]} 31. Na5 {[%emt 0:00:07]} Ne6 {[%emt 0:01:26]} 32. Rd1 {[%emt 0:01:04]} Qc7 {[%emt 0:01:07]} 33. h3 {[%emt 0:01:34]} Rc8 {[%emt 0:00:14]} 34. Bb2 {[%emt 0:02:21]} Qc2 {[%emt 0:02:57]} 35. Rc1 {[%emt 0:00:24]} Qxc1+ {[%emt 0:01:47]} 36. Bxc1 {[%emt 0:00:06]} Rxc1+ 37. Kh2 {[%emt 0:00:07]} Rc7 {[%emt 0:03:37]} 38. Qd5 {[%emt 0:00:38]} Rc3 {[%emt 0:00:38]} 39. Qa8+ {[%emt 0:00:24]} Bf8 {[%emt 0:00:52]} 40. Qxa6 {[%emt 0:00:08]} Rxa3 {[%emt 0:00:11]} 41. Qxb5 Ra2 {[%emt 0:01:19]} 42. f3 {[%emt 0:03:40]} Rb2 {[%emt 0:00:51]} 43. Nc6 {[%emt 0:00:46]} Rb3 {[%emt 0:02:30]} 44. Qxe5 {[%emt 0:00:51]} Bxb4 {[%emt 0:01:03]} 45. Qb8+ {[%emt 0:00:25]} Kg7 {[%emt 0:00:46]} 46. Nxb4 {[%emt 0:00:10]} Rxe3 {[%emt 0:00:20]} 47. Nd5 {[%emt 0:01:19]} Rd3 {[%emt 0:00:46]} 48. Qe5+ {[%emt 0:00:17]} Kg8 {[%emt 0:01:55]} 49. Nf6+ {[%emt 0:00:55]} Kg7 {[%emt 0:01:26]} 50. Ne4+ {[%emt 0:01:45]} Kg8 {[%emt 0:00:32]} 51. Nc5 {[%emt 0:02:50]} Nxc5 {[%emt 0:02:01]} 52. Qxc5 {[%emt 0:00:06]} Rd8 {[%emt 0:00:19]} 53. f4 {[%emt 0:00:20]} Rf8 {[%emt 0:00:34]} 54. f5 {[%emt 0:00:06]} Re8 {[%emt 0:01:36]} 55. f6 {[%emt 0:00:18]} h6 {[%emt 0:01:00]} 56. h4 {[%emt 0:01:20]} Re6 {[%emt 0:00:00]} 57. Qd4 {[%emt 0:00:29]} h5 {[%emt 0:00:23]} 58. Qf4 {[%emt 0:00:31]} Kh7 {[%emt 0:00:48]} 59. Kg3 {[%emt 0:00:52]} Kg8 {[%emt 0:00:49]} 60. Kf3 {[%emt 0:00:10]} Kh7 {[%emt 0:00:31]} 61. g4 {[%emt 0:00:53]} hxg4+ {[%emt 0:01:14]} 62. Kxg4 {[%emt 0:00:27]} Rc6 {[%emt 0:00:21]} 63. h5 {[%emt 0:01:19]} gxh5+ {[%emt 0:02:19]} 64. Kh4 {[%emt 0:04:56]} Rc8 {[%emt 0:04:40]} 65. Qf5+ {[%emt 0:00:50]} 1-0

[Event "46th GRE-chT Premier 2018"]
[Site "Rio Achaia"]
[Date "2018.07.10"]
[Round "1"]
[White "Gkaripis, Marios Ilias"]
[Black "Merkos, Thomas"]
[Result "0-1"]
[ECO "E51"]
[WhiteElo "1374"]
[BlackElo "1425"]
[Annotator "NA"]
[PlyCount "108"]
[EventDate "2018.07.10"]
[EventType "team-tourn"]
[EventCountry "GRE"]
[SourceTitle "playchess.com"]
[Source "ChessBase"]
[SourceQuality "1"]
[TimeControl "40/5400+30:1800+30"]

1. d4 {[%emt 0:00:00]} Nf6 {[%emt 0:00:00]} 2. c4 {[%emt 0:00:00]} e6 {[%emt 0:00:00]} 3. Nc3 {[%emt 0:00:08]} Bb4 {[%emt 0:00:00]} 4. e3 {[%emt 0:00:52]} O-O {[%emt 0:00:00]} 5. Nf3 {[%emt 0:00:46]} d5 {[%emt 0:00:38]} 6. a3 {[%emt 0:01:17]} Bxc3+ {[%emt 0:00:43]} 7. bxc3 b6 {[%emt 0:01:11]} 8. cxd5 {[%emt 0:03:39]} exd5 {[%emt 0:00:15]} 9. c4 {[%emt 0:02:08]} Ba6 {[%emt 0:03:03]} 10. Qc2 {[%emt 0:06:07]} c5 {[%emt 0:07:25]} 11. Bd3 {[%emt 0:09:04]} cxd4 {[%emt 0:15:02]} 12. Nxd4 {[%emt 0:03:46]} Qc8 {[%emt 0:01:07]} 13. cxd5 {[%emt 0:05:24]} Qxc2 {[%emt 0:00:40]} 14. Bxc2 {[%emt 0:00:11]} Nxd5 {[%emt 0:00:58]} 15. Be4 {[%emt 0:03:01]} Bc4 {[%emt 0:04:19]} 16. Nb5 {[%emt 0:07:33]} Bxb5 {[%emt 0:02:02]} 17. Bxd5 {[%emt 0:00:15]} Bc6 {[%emt 0:00:05]} 18. Bxc6 {[%emt 0:01:10]} Nxc6 {[%emt 0:00:03]} 19. Bb2 {[%emt 0:01:34]} Rac8 {[%emt 0:03:58]} 20. Rc1 {[%emt 0:03:30]} Na5 {[%emt 0:01:29]} 21. Ke2 {[%emt 0:12:30]} Nc4 {[%emt 0:03:31]} 22. Rc2 {[%emt 0:06:14]} Nxb2 {[%emt 0:01:14]} 23. Rxb2 {[%emt 0:00:11]} Rc3 {[%emt 0:04:31]} 24. Ra1 {[%emt 0:03:14]} Rfc8 {[%emt 0:02:42]} 25. Rd2 {[%emt 0:03:43]} Kf8 {[%emt 0:03:45]} 26. Rd7 {[%emt 0:02:54]} a6 {[%emt 0:05:53]} 27. Rd6 {[%emt 0:02:09]} Rb3 {[%emt 0:00:20]} 28. Rd3 {[%emt 0:07:55]} Rc2+ {[%emt 0:01:11]} 29. Rd2 {[%emt 0:00:16]} Rbb2 {[%emt 0:00:35]} 30. Rad1 {[%emt 0:04:04]} Rxd2+ {[%emt 0:00:58]} 31. Rxd2 {[%emt 0:00:07]} Rxd2+ {[%emt 0:00:04]} 32. Kxd2 {[%emt 0:00:06]} Ke7 {[%emt 0:00:16]} 33. Kc3 {[%emt 0:01:40]} Kd6 {[%emt 0:02:02]} 34. Kd4 {[%emt 0:01:20]} Kc6 {[%emt 0:01:06]} 35. e4 {[%emt 0:01:32]} Kd6 {[%emt 0:04:06]} 36. f4 {[%emt 0:02:28]} f6 {[%emt 0:04:11]} 37. g4 {[%emt 0:02:35]} g5 {[%emt 0:05:32]} 38. fxg5 {[%emt 0:02:58]} fxg5 {[%emt 0:00:09]} 39. e5+ {[%emt 0:01:03]} Ke6 {[%emt 0:00:20]} 40. h3 {[%emt 0:00:00]} h6 {[%emt 0:00:00]} 41. Ke4 {[%emt 0:03:18]} b5 {[%emt 0:01:45]} 42. Kd4 {[%emt 0:00:33]} a5 {[%emt 0:00:46]} 43. Kc5 {[%emt 0:00:45]} b4 {[%emt 0:01:32]} 44. axb4 {[%emt 0:00:26]} axb4 {[%emt 0:00:07]} 45. Kxb4 {[%emt 0:00:10]} Kxe5 {[%emt 0:00:08]} 46. Kc5 {[%emt 0:01:37]} Kf4 {[%emt 0:00:09]} 47. Kd4 {[%emt 0:00:29]} Kg3 {[%emt 0:00:14]} 48. Ke4 {[%emt 0:00:17]} Kxh3 {[%emt 0:00:18]} 49. Kf3 {[%emt 0:00:41]} Kh4 {[%emt 0:00:12]} 50. Kg2 {[%emt 0:00:09]} Kxg4 {[%emt 0:00:07]} 51. Kh2 {[%emt 0:00:07]} Kf3 {[%emt 0:00:31]} 52. Kg1 {[%emt 0:00:14]} g4 {[%emt 0:00:11]} 53. Kf1 {[%emt 0:00:29]} g3 {[%emt 0:00:14]} 54. Kg1 {[%emt 0:00:10]} g2 {[%emt 0:00:07]} 0-1

[Event "46th GRE-chT Premier 2018"]
[Site "Rio Achaia"]
[Date "2018.07.10"]
[Round "1"]
[White "Anthopoulou, Ioanna"]
[Black "Pasoglou, Ekaterini"]
[Result "1-0"]
[ECO "B23"]
[WhiteElo "1359"]
[BlackElo "1849"]
[Annotator "NA"]
[PlyCount "63"]
[EventDate "2018.07.10"]
[EventType "team-tourn"]
[EventCountry "GRE"]
[SourceTitle "playchess.com"]
[Source "ChessBase"]
[SourceQuality "1"]
[TimeControl "40/5400+30:1800+30"]

1. e4 {[%emt 0:00:00]} c5 {[%emt 0:00:00]} 2. Nc3 {[%emt 0:00:00]} d6 {[%emt 0:00:00]} 3. f4 {[%emt 0:00:18]} Nc6 {[%emt 0:00:15]} 4. Nf3 {[%emt 0:01:32]} g6 {[%emt 0:00:24]} 5. Bc4 {[%emt 0:01:27]} Bg7 {[%emt 0:01:51]} 6. O-O {[%emt 0:01:44]} e6 {[%emt 0:01:27]} 7. Qe1 {[%emt 0:02:06]} Nge7 {[%emt 0:01:24]} 8. d3 {[%emt 0:02:04]} a6 {[%emt 0:02:50]} 9. a4 {[%emt 0:01:41]} O-O {[%emt 0:02:41]} 10. Ne2 {[%emt 0:01:35]} d5 {[%emt 0:01:34]} 11. Bb3 {[%emt 0:02:48]} b6 {[%emt 0:06:34]} 12. e5 {[%emt 0:02:57]} Bb7 {[%emt 0:02:47]} 13. d4 {[%emt 0:06:05]} c4 {[%emt 0:10:17]} 14. Ba2 {[%emt 0:00:47]} b5 {[%emt 0:01:30]} 15. Bb1 {[%emt 0:02:12]} Qb6 {[%emt 0:14:01]} 16. a5 {[%emt 0:07:17]} Qd8 {[%emt 0:00:34]} 17. Bd2 {[%emt 0:00:57]} Rb8 {[%emt 0:02:45]} 18. b3 {[%emt 0:03:21]} Nf5 {[%emt 0:18:12]} 19. b4 {[%emt 0:06:24]} h5 {[%emt 0:02:25]} 20. c3 {[%emt 0:02:23]} Nce7 {[%emt 0:01:44]} 21. Ng5 {[%emt 0:02:48]} Bc8 {[%emt 0:01:18]} 22. Kh1 {[%emt 0:02:43]} Nh6 {[%emt 0:10:28]} 23. Rg1 {[%emt 0:03:39]} f6 {[%emt 0:00:57]} 24. Nf3 {[%emt 0:01:04]} Nef5 {[%emt 0:02:43]} 25. h3 {[%emt 0:02:50]} fxe5 {[%emt 0:06:26]} 26. fxe5 {[%emt 0:01:49]} Kf7 {[%emt 0:04:57]} 27. g4 {[%emt 0:04:07]} hxg4 {[%emt 0:00:06]} 28. hxg4 {[%emt 0:00:09]} Ne7 {[%emt 0:00:22]} 29. Bg5 {[%emt 0:01:14]} Rh8 {[%emt 0:00:57]} 30. Nh4 {[%emt 0:00:40]} Nhg8 {[%emt 0:02:58]} 31. Bxg6+ {[%emt 0:01:12]} Kf8 {[%emt 0:00:17]} 32. Qf2+ {[%emt 0:00:33]} 1-0